Cogmind - Beta 13 @@@ ROGUE MODE // 2024.04.29 @ 18:23:57 Player: skittytittles Result: Self-destructed Performance ------------- Evolutions (1) 500 Regions Visited (3) 600 Robots Destroyed (17) 85 Value Destroyed (330) 330 Prototype IDs (0) 0 Alien Tech Used (0) 0 Bonus (-33) -33 TOTAL SCORE: 1482 Bonus ------- Friendly Fire -33 Cogmind --------- Core Integrity 169/400 Matter 146/300 Energy 13/100 System Corruption 3% Temperature Cool (0) Movement Core (100) Ox1 Location -9/Mines Parts ------- > --- POWER (1) -------- (None) > --- PROPULSION (4) --- (None) > --- UTILITY (2) ------ Small Storage Unit > --- WEAPON (2) ------- (None) > --- INVENTORY (8) ---- Ion Engine Light Ion Engine Assault Rifle Assault Rifle Peak State ------------ > --- POWER ------------ Light Ion Engine > --- PROPULSION ------- Aluminum Leg Aluminum Leg > --- UTILITY ---------- Small Storage Unit Improved Terrain Scanner > --- WEAPON ----------- EM Pulse Gun Assault Rifle > --- INVENTORY -------- Light Ion Engine Assault Rifle [Rating: 9] Favorites ----------- Power Light Ion Engine Engine Light Ion Engine Propulsion Aluminum Leg Leg Aluminum Leg Utility Small Storage Unit Device Improved Terrain Scanner Storage Small Storage Unit Weapon EM Pulse Gun Energy Gun EM Pulse Gun Ballistic Gun Assault Rifle Launcher Grenade Launcher Build | -11 -10 -9 -9 ------- Run | Yrd Mat Mat Min Slots Evolved 2 | . . 2 . Power . | . . . . Propulsion 2 | . . 2 . Utility . | . . . . Weapon . | . . . . Parts Attached 18 | 7 6 . 5 Power 1 | 1 . . . Engine 1 | 1 . . . Core . | . . . . Reactor . | . . . . Propulsion 8 | 2 2 . 4 Treads . | . . . . Leg 8 | 2 2 . 4 Wheel . | . . . . Hover . | . . . . Flight . | . . . . Utility 3 | 2 1 . . Device 2 | 1 1 . . Storage 1 | 1 . . . Processor . | . . . . Hackware . | . . . . Protection . | . . . . Artifact . | . . . . Weapon 6 | 2 3 . 1 Energy Gun 3 | 1 1 . 1 Energy Cannon . | . . . . Ballistic Gun 1 | 1 . . . Ballistic Cannon . | . . . . Launcher 2 | . 2 . . Special Weapon . | . . . . Impact Weapon . | . . . . Slashing Weapon . | . . . . Piercing Weapon . | . . . . Special Melee Weapon . | . . . . Unidentified Prototypes . | . . . . Parts Lost 12 | . 2 . 10 Power 1 | . . . 1 Propulsion 6 | . 1 . 5 Utility 2 | . 1 . 1 Weapon 3 | . . . 3 Highest Loss Streak 10 | . 1 . 10 To Critical Strikes . | . . . . Average Slot Usage (%) 96 | . 99 77 88 Engine 13 | . 14 11 11 Leg 27 | . 27 22 40 Device 13 | . 14 11 11 Storage 13 | . 14 11 11 Energy Gun 13 | . 14 11 7 Ballistic Gun 3 | . 4 . . Launcher 9 | . 9 11 7 Naked Turns . | . . . . Heaviest Build 15 | 13 15 15 15 Greatest Support 40 | 20 20 20 40 Greatest Overweight (x) 1 | 1 1 . . Average Overweight (x) . | . . . . Largest Inventory Capacity 8 | 8 8 8 8 Average Capacity 7 | 6 8 8 8 Most Carried 8 | 4 8 8 7 Average Carried 4 | 1 4 8 5 Final Capacity 8 | 8 8 8 8 Final Carried 8 | 2 8 8 4 Class Distribution -------------------- 100% | Mutant Dominant Class ---------------- Mutant | -10/Materials Mutant | -9/Materials Mutant | -9/Mines Resources | -11 -10 -9 -9 ----------- Run | Yrd Mat Mat Min Matter Collected 393 | 279 104 . 10 Remotely . | . . . . Salvage Created 371 | 116 240 . 15 Parts 33 | 7 23 . 3 Haulers Intercepted . | . . . . Recyclers Shooed . | . . . . Parts Field Recycled . | . . . . Retrieved Matter . | . . . . Parts Self-Destructed . | . . . . Prevented . | . . . . Kills | -11 -10 -9 -9 ------- Run | Yrd Mat Mat Min Combat Hostiles Destroyed 9 | . 8 . 1 Guns 2 | . 2 . . AOE 7 | . 6 . 1 Classes Destroyed 8 | 2 5 . 1 Worker 4 | . 3 . 1 Builder 1 | . 1 . . Tunneler 1 | 1 . . . Recycler 1 | 1 . . . Watcher 2 | . 2 . . Swarmer 3 | . 3 . . Grunt 5 | . 5 . . Assembled 1 | . . . 1 Best Kill Streak 6 | 2 6 . 2 Combat Bots Only 4 | . 4 . 1 Max Kills in Single Turn 4 | 1 4 . 1 Gunslinging . | . . . . Exploded 2 | . 2 . 1 Melee . | . . . . Uniques/NPCs Destroyed . | . . . . Combat | -11 -10 -9 -9 -------- Run | Yrd Mat Mat Min Hostile Shots Fired 76 | . 14 7 55 Missed 22 | . 6 3 13 Damage Taken 1158 | . 268 66 824 Core 271 | . 40 . 231 Absorbed by Shields . | . . . . Regen/Repaired (Parts) 36 | . 36 . . Core Remaining (%) 92 | 100 84 . . Volleys Fired 30 | 3 18 6 3 Largest 2 | 2 2 2 2 Hottest 70 | 60 70 70 70 Shots Fired 55 | 6 33 11 5 Gun 33 | 6 18 6 3 Cannon . | . . . . Launcher 22 | . 15 5 2 Special . | . . . . Kinetic 3 | 3 . . . Thermal . | . . . . Explosive 22 | . 15 5 2 Electromagnetic 30 | 3 18 6 3 Robot Hit Streak 4 | 3 4 1 2 Robot Miss Streak 4 | 1 3 4 . Penetration Max . | . . . . Secondary Targets . | . . . . Shots Hit Robots 19 | 4 12 2 1 Core Hits 27 | 2 19 2 4 Critical Kills . | . . . . Critical Parts Destroyed . | . . . . Critical Strikes . | . . . . Melee Attacks . | . . . . Impact . | . . . . Slashing . | . . . . Piercing . | . . . . Sneak Attacks . | . . . . Combat Hostiles . | . . . . Follow-up Attacks . | . . . . Damage Inflicted 985 | 52 702 71 160 Guns 164 | 52 102 . 10 Cannons . | . . . . Explosions 817 | . 596 71 150 Melee . | . . . . Ramming 4 | . 4 . . Kinetic 10 | 10 . . . Thermal 89 | . 89 . . Explosive 728 | . 507 71 150 Electromagnetic 154 | 42 102 . 10 Impact . | . . . . Slashing . | . . . . Piercing . | . . . . Highest Corruption 3 | . . . 3 Average Corruption 3 | . . . 3 Corruption Purged . | . . . . Corruption Blocked . | . . . . Overload Shots . | . . . . Overflow Damage 56 | . 37 3 16 Projectiles . | . . . . Explosions 56 | . 37 3 16 Melee . | . . . . Knockbacks . | . . . . Impact . | . . . . Kinetic . | . . . . Secondary . | . . . . Self-Inflicted Damage 203 | . 160 25 18 Shots 10 | . 7 2 1 Rammed . | . . . . Targets Rammed 1 | . 1 . . Kicked 1 | . 1 . . Crushed . | . . . . Highest Temperature 90 | . 90 12 . Average Temperature 28 | . 31 6 . Received Heat Transfer 113 | . 69 24 20 Siege Activations . | . . . . Robots Corrupted . | . . . . Combat Hostiles . | . . . . Parts Fried . | . . . . Impact Corruptions . | . . . . Robots Melted . | . . . . Combat Hostiles . | . . . . Parts Melted . | . . . . Heat Transferred 100 | . 100 . . Parts Sabotaged . | . . . . Parts Stolen . | . . . . Parts Stripped . | . . . . Power Chain Reactions 1 | . 1 . . Alert | -11 -10 -9 -9 ------- Run | Yrd Mat Mat Min Peak Influence 251 | 10 251 130 68 Initial 76 | . 6 76 50 Average 65 | 7 70 91 47 Maximum Alert Level 1 | . 1 . . Low Security (%) 95 | 100 93 100 100 Level 1 4 | . 6 . . Level 2 . | . . . . Level 3 . | . . . . Level 4 . | . . . . Level 5 . | . . . . High Security . | . . . . Max Security . | . . . . Squads Dispatched 3 | . 1 2 . Investigation . | . . . . Extermination . | . . . . Reinforcement 3 | . 1 2 . Assault . | . . . . Garrison . | . . . . Intercept . | . . . . Searches Triggered . | . . . . Construction Impeded . | . . . . Haulers Reinforced . | . . . . Active Scanning Responses . | . . . . Cargo Convoy Interrupts . | . . . . Stealth | -11 -10 -9 -9 --------- Run | Yrd Mat Mat Min Distress Signals 2 | . 1 1 . Communications Jammed . | . . . . Distress Signals . | . . . . Times Spotted 37 | . 14 4 19 Peak Tracking Total 17 | . 4 3 17 Tactical Retreats 2 | . 1 . 1 Traps | -11 -10 -9 -9 ------- Run | Yrd Mat Mat Min Traps Triggered . | . . . . Indirectly . | . . . . Trap Hack Attempts . | . . . . Triggered . | . . . . Disarmed . | . . . . Reprogrammed . | . . . . Reused . | . . . . Traps Extracted . | . . . . Installed . | . . . . Triggered . | . . . . Machines | -11 -10 -9 -9 ---------- Run | Yrd Mat Mat Min Machines Disabled 6 | . 5 1 . Max in Single Turn 2 | . 2 1 . Machines Repaired . | . . . . Machines Dismantled . | . . . . Machines Sabotaged . | . . . . Overloaded Fab Kills . | . . . . Hacking | -11 -10 -9 -9 --------- Run | Yrd Mat Mat Min Machines Accessed 3 | . 3 . . Terminals 1 | . 1 . . Fabricators . | . . . . Repair Stations 1 | . 1 . . Recycling Units 1 | . 1 . . Scanalyzers . | . . . . Garrison Access . | . . . . Total Hacks 11 | . 11 . . Successful 5 | . 5 . . Failed 6 | . 6 . . Catastrophic . | . . . . Database Lockouts . | . . . . Manual . | . . . . Terminals 4 | . 4 . . Fabricators . | . . . . Repair Stations 3 | . 3 . . Recycling Units 4 | . 4 . . Scanalyzers . | . . . . Garrison Access . | . . . . Terminal Hacks 1 | . 1 . . Unreport Threat 1 | . 1 . . Fabricator Hacks . | . . . . Repair Station Hacks 2 | . 2 . . Scan Component 1 | . 1 . . Repair 1 | . 1 . . Recycling Unit Hacks 2 | . 2 . . Report Inventory 1 | . 1 . . Retrieve Matter 1 | . 1 . . Scanalyzer . | . . . . Garrison Access Hacks . | . . . . Unauthorized Hacks . | . . . . Terminals . | . . . . Fabricators . | . . . . Repair Stations . | . . . . Recycling Units . | . . . . Scanalyzers . | . . . . Garrison Access . | . . . . Data Cores Recovered . | . . . . Used . | . . . . Hacking Detections 3 | . 3 . . Full Trace Events . | . . . . Feedback Events . | . . . . Feedback Blocked . | . . . . Robot Schematics Acquired . | . . . . Robots Built . | . . . . Authchips . | . . . . Time . | . . . . Total Robot Build Rating . | . . . . Part Schematics Acquired . | . . . . Parts Built . | . . . . Authchips . | . . . . Time . | . . . . Total Part Build Rating . | . . . . Parts Repaired 1 | . 1 . . Time 26 | . 26 . . Parts Recycled . | . . . . Recycled Matter . | . . . . Retrieved Matter . | . . . . Retrieved Components . | . . . . Parts Scanalyzed . | . . . . Part Schematics Acquired . | . . . . Parts Damaged . | . . . . Bothacking | -11 -10 -9 -9 ------------ Run | Yrd Mat Mat Min Used RIF Installer . | . . . . Robots Hacked . | . . . . Non-combat . | . . . . Combat . | . . . . Robot Hacks Applied . | . . . . Relay Couplers Released . | . . . . Fabnet Peak Effective % . | . . . . Robots Rewired . | . . . . Allies Hacked . | . . . . Hacks Repelled . | . . . . Allies | -11 -10 -9 -9 -------- Run | Yrd Mat Mat Min Total Allies . | . . . . Largest Group . | . . . . Highest-Rated Group . | . . . . Highest-Rated Ally . | . . . . Total Orders . | . . . . Ally Attacks . | . . . . Total Damage . | . . . . Kills . | . . . . Allies Corrupted . | . . . . Allies Melted . | . . . . Intel | -11 -10 -9 -9 ------- Run | Yrd Mat Mat Min Robot Analysis Total . | . . . . Derelict Logs Recovered . | . . . . Drone Launches . | . . . . Drone Recoveries . | . . . . Exploration | -11 -10 -9 -9 ------------- Run | Yrd Mat Mat Min Turns Passed 964 | 90 766 80 28 Spaces Moved 513 | 38 410 53 12 Core 6 | 6 . . . Treads . | . . . . Legs 507 | 32 410 53 12 Wheels . | . . . . Hover . | . . . . Flight . | . . . . Fastest Speed 50 | 50 120 120 120 Average Speed 119 | 110 120 120 120 Slowest Speed 190 | 120 190 120 120 Overloaded Moves . | . . . . Propulsion Burnouts . | . . . . Robots Hopped . | . . . . Cave-ins Triggered . | . . . . Exploration Rate (%) 21 | 3 68 10 4 Regions Visited 3 Branch Regions 1 Pre-discovered Areas . | . . . . Known Exits Taken . | . . . . Unknown Exits Taken 3 | 1 1 1 . Scrap Searched . | . . . . Spaces Dug 66 | . 50 3 13 Terrain Destroyed 183 | . 146 24 13 Melee . | . . . . Projectile . | . . . . AOE 183 | . 146 24 13 Terrain Rammed . | . . . . Walls Destroyed . | . . . . Machines Disabled . | . . . . Actions | -11 -10 -9 -9 --------- Run | Yrd Mat Mat Min Total 802 | 78 646 58 20 Wait 227 | 23 204 . . Move 510 | 37 409 52 12 Hop . | . . . . Pick Up 14 | 6 8 . . Fast Attach 6 | 5 1 . . Attach 8 | 2 2 . 4 Detach . | . . . . Swap 4 | . 3 . 1 Drop 2 | 2 . . . Fire 30 | 3 18 6 3 Melee . | . . . . Ram . | . . . . Kick 1 | . 1 . . Crush . | . . . . Escape Stasis . | . . . . Rewire . | . . . . Trap . | . . . . Miscellaneous . | . . . . Route ------- -11/Scrapyard -10/Materials (discovered 4 exits: [*Mat x2] / [*Min x2]) -9/Materials (discovered 2 exits: [*Min] / [*Sto]) -9/Mines History --------- Turn | Location | Event 47 | -11/Scrapyard | Discovered new exit (range 14) 91 | -11/Scrapyard | Entered Materials 253 | -10/Materials | Discovered new exit (range 6) 301 | -10/Materials | Build established: Mutant 353 | -10/Materials | Discovered new exit (range 9) 471 | -10/Materials | Discovered new exit (range 7) 792 | -10/Materials | Repaired Grenade Launcher 813 | -10/Materials | Discovered new exit (range 10) 857 | -10/Materials | Entered another Materials area 857 | -9/Materials | Evolved 2 slots: Propulsion x2 859 | -9/Materials | Discovered new exit (range 15) 913 | -9/Materials | Discovered new exit (range 11) 937 | -9/Materials | Entered Mines 938 | -9/Mines | Assembled infested the area 943 | -9/Mines | Assisted by a Guerilla fighting off Assembled 965 | -9/Mines | Self-destructed Last Messages --------------- I've been tracking a group of Assembled to figure out where they're coming from, and they're closing on this area, come on!" 00946_ K-01 Serf destroyed. 00946_ as-75024 suffers critical hit (Destroy). 00946_ as-75024 destroyed. 00947_ 1G-E4U(h) system corrupted by crushing effect. 00947_ as-25121 destroyed. 00948_ 1G-E4U(h) system terminally corrupted. 00949_ as-99347 suffers critical hit (Destroy). 00953_ Grenade Launcher destroyed. 00953_ Aluminum Leg destroyed. 00957_ EM Pulse Gun destroyed. 00958_ Acquired 10 matter. 00960_ Lgt. Ion Engine destroyed. 00960_ Aluminum Leg destroyed. 00962_ ECM Suite destroyed. 00962_ System corrupted by crushing effect (+3). 00963_ Aluminum Leg destroyed. 00963_ EM Pulse Gun destroyed. 00963_ Aluminum Leg destroyed. Map ----- +----------------------------------------------------+ | ?????????????????????????????? | | ?????????????????????????????? | | ?????????????????????????????? | | ?????????????????????????????? | | ?????????????????????????????? | | ?????????????????????????????? | | ?????????????????????????????? | | ?????????????????????????????? | | ?????????????????????????????? | | ?????????????????????????????? | | ?????????????????????????????? | | ?????????????????????????????? | | ?????????????????????????????? | | ?????????????????????????????? | | ?????????????????????????????? | | ?????????????????????????????? | | ?????????????????????????????? | | ?????######??????????????????? | | ??#### #??????????????????? | | ?## #??????????????????? | | ?# aaa #??????????????????? | | ?# =a #??????????????????? | | ?# aaaa##########??????????? | | ?# aaaa % ????????? | | ?# aaa "%######????????????? | | ?####@#### #?????????????????? | | ????###???%#?????????????????? | | ???????????#?????????????????? | | ?????????????????????????????? | | ?????????????????????????????? | | ?????????????????????????????? | | ?????????????????????????????? | | ?????????????????????????????? | | ?????????????????????????????? | | ?????????????????????????????? | | ?????????????????????????????? | | ?????????????????????????????? | | ?????????????????????????????? | | ?????????????????????????????? | | ?????????????????????????????? | | ?????????????????????????????? | | ?????????????????????????????? | | ?????????????????????????????? | | ?????????????????????????????? | | ?????????????????????????????? | | ?????????????????????????????? | | ?????????????????????????????? | | ?????????????????????????????? | | ?????????????????????????????? | | ?????????????????????????????? | +----------------------------------------------------+ Best States ------------- Heat Dissipation 28 Energy Generation 10 Energy Capacity 125 Matter Stores 300 Matter Capacity 300 Sight Range 16 Terrain Scan Range 16 Terrain Scan Density 10 ECM Strength 1 Evasion (%) 55 Item Schematics ----------------- None Robot Schematics ------------------ None Fabricated ------------ Nothing Alien Tech Used ----------------- None Achievements -------------- None Challenges ------------ None Game ------ Seed ReactionAntigravRouter Manual? 0 Play Time 00:22:50 Cumulative 9.0 hours Start 2024.04.20 @ 23:24:32 End 2024.04.29 @ 18:23:57 Sessions 5 Manual Loads 0 Difficulty Rogue Special Mode None Game No. 10 Rogue 10 Adventurer 0 Explorer 0 Win Type - Total 0 Types 0/0/0/0/0/0/0/0/0 Lore% 11 Gallery% 13 Achievement% 16 Wizard Run 0 Options --------- Layout 0 ASCII 0 Keyboard 0 Movement Mouse Keybinds 0 Fullscreen 1 Font 18/SmallcapsGlow Map View 38x25 Zoom Use 95% Tactical HUD 1 Map Filters NONE Filters NONE Steam 1 RUN: ae1fdb5b-fbd2-4fac-a064-b504d517a2df